lending/lending_fUSD_20250406
["ID","MTS","AMOUNT","RATE_DAILY","PERIOD"]
[357235047,1743924663959,-1830.37828658,0.00094442,120]
[357235048,1743924663970,-328.02,0.00094445,2]
[357235049,1743924663980,-293.51118696,0.00094447,120]
[357235050,1743924663990,-1830.37828658,0.00094448,120]
[357235051,1743924664000,-481.24892282,0.00094461,120]
[357235052,1743924664010,-318.82741137,0.0009447,120]
[357235053,1743924664020,-1254.24686447,0.00094474,120]
[357235054,1743924664029,-314.3419686,0.00094487,120]
[357235055,1743924664038,-314.3419686,0.00094493,120]
[357235056,1743924664049,-200.0,0.00094494,120]
[357235057,1743924664059,-318.82741137,0.00094526,120]
[357235058,1743924664069,-353.09616477,0.00094528,120]
[357235059,1743924664079,-1254.24686447,0.00094543,120]
[357235060,1743924664088,-314.3419686,0.00094548,120]
[357235061,1743924664099,-293.51118696,0.00094571,120]
[357235062,1743924664109,-1830.37828658,0.00094574,120]
[357235063,1743924664119,-293.51118696,0.00094577,120]
[357235064,1743924664129,-463.38737279,0.0009459,120]
[357235065,1743924664140,-1830.37828658,0.00094605,120]
[357235066,1743924664150,-353.09616477,0.00094609,120]
[357235067,1743924664160,-353.09616477,0.00094622,120]
[357235068,1743924664170,-314.3419686,0.00094624,120]
[357235069,1743924664180,-1254.24686447,0.00094634,120]
[357235070,1743924664190,-1254.24686447,0.00094637,120]
[357235071,1743924664200,-293.51118696,0.00094641,120]
[357235072,1743924664209,-318.82741137,0.00094681,120]
[357235073,1743924664218,-353.09616477,0.00094694,120]
[357235074,1743924664228,-200.0,0.00094702,120]
[357235075,1743924664238,-463.38737279,0.00094707,120]
[357235076,1743924664248,-1148.41781552,0.00094717,120]
[357235077,1743924664257,-200.0,0.00094718,120]
[357235078,1743924664267,-200.0,0.00094725,120]
[357235079,1743924664276,-353.09616477,0.00094737,120]
[357235080,1743924664286,-314.3419686,0.00094738,120]
[357235081,1743924664295,-318.82741137,0.00094743,120]
[357235082,1743924664305,-152.17426933,0.00094751,120]
[357235083,1743924664316,-200.0,0.00094761,120]
[357235084,1743924664326,-463.38737279,0.00094771,120]
[357235085,1743924664336,-481.24892282,0.00094786,120]
[357235086,1743924664345,-318.82741137,0.00094801,120]
[357235087,1743924664355,-318.82741137,0.00094803,120]
[357235088,1743924664365,-293.51118696,0.0009482,120]
[357235089,1743924664375,-293.51118696,0.0009482,120]
[357235090,1743924664385,-3954.0,0.00094835,120]
[357235091,1743924664395,-318.82741137,0.00094874,120]
[357235092,1743924664405,-1148.41781552,0.00094894,120]
[357235093,1743924664415,-200.0,0.00094911,120]
[357235094,1743924664425,-293.51118696,0.00094914,120]
[357235095,1743924664435,-314.3419686,0.00094916,120]
[357235096,1743924664445,-314.3419686,0.00094926,120]
[357235097,1743924664455,-481.24892282,0.00094928,120]
[357235098,1743924664466,-200.0,0.00094928,120]
[357235099,1743924664476,-463.38737279,0.00094934,120]
[357235100,1743924664485,-1254.24686447,0.0009494,120]
[357235101,1743924664495,-318.82741137,0.00094942,120]
[357235102,1743924664505,-481.24892282,0.00094966,120]
[357235103,1743924664515,-1254.24686447,0.00094988,120]
[357235104,1743924664525,-1000000.0,0.00095,120]
[357235105,1743924664535,-256.25080996,0.00095,120]
[357235106,1743924664545,-2614.76024841,0.00095,120]
[357235107,1743924664555,-5435.94979157,0.00095,120]
[357235108,1743924664564,-1254.24686447,0.00095,120]
[357235109,1743924664574,-1148.41781552,0.00095003,120]
[357235110,1743924664583,-200.0,0.00095006,120]
[357235111,1743924664593,-463.38737279,0.00095015,120]
[357235112,1743924664602,-1830.37828658,0.00095025,120]
[357235113,1743924664612,-481.24892282,0.00095026,120]
[357235114,1743924664621,-159.2,0.00095685,120]
[357235115,1743924664630,-500.0,0.00095863,120]
[357235116,1743924664640,-500.0,0.00095863,120]
[357235117,1743924664649,-500.0,0.00095863,120]
[357235118,1743924664659,-500.0,0.00095863,120]
[357235119,1743924664668,-500.0,0.00095863,120]
[357235120,1743924664677,-500.0,0.00095863,120]
[357235121,1743924664687,-500.0,0.00095863,120]
[357235122,1743924664696,-254.59424636,0.00095863,120]
[357235123,1743924664706,-341.54,0.0009641,120]
[357235124,1743924664718,-191.30325421,0.000967,120]
[357235125,1743924664728,-328.02,0.00096709,2]
[357235126,1743924664738,-151.0,0.00097335,120]
[357235127,1743924664747,-500000.0,0.000975,120]
[357235128,1743924664758,-1378.65600131,0.00097654,120]
[357235129,1743924664767,-2615.055,0.00097835,120]
[357235130,1743924664776,-249545.69028761,0.0009789,120]
[357235131,1743924664786,-388.0,0.00098055,2]
[357235132,1743924664795,-500.0,0.00098999,120]
[357235133,1743924664888,-309.04,0.00098999,120]
[357235134,1743924664899,-500.0,0.00098999,120]
[357235135,1743924664908,-526.36,0.00098999,120]
[357235136,1743924664918,-500.0,0.0009987,120]
[357235137,1743924664928,-215.69650112,0.00099887,60]
[357235138,1743924664937,-500.0,0.00099888,120]
[357235139,1743924664946,-500.0,0.00099888,120]
[357235140,1743924664956,-648.18933095,0.00099899,120]
[357235141,1743924664965,-249.09,0.00099899,120]
[357235142,1743924664974,-155.234977,0.000999,120]
[357235143,1743924664984,-155.234977,0.000999,3]
[357235144,1743924664993,-150.0,0.000999,30]
[357235145,1743924665003,-150.0,0.000999,30]
[357235146,1743924665012,-150.0,0.000999,30]
[357235147,1743924665021,-150.0,0.000999,30]
[357235148,1743924665031,-969.76518873,0.000999,30]
[357235149,1743924665040,-269.48812003,0.000999,30]
[357235150,1743924665049,-1510.38798098,0.000999,30]
[357235151,1743924665058,-762.07360751,0.000999,30]
[357235152,1743924665068,-10000.0,0.000999,120]
[357235153,1743924665077,-10000.0,0.000999,120]
[357235154,1743924665087,-6520.874019,0.000999,120]
[357235155,1743924665096,-1000000.0,0.001,120]
[357235156,1743924665105,-601.38350516,0.001,120]
[357235157,1743924665114,-1557.65665407,0.001,120]
[357235158,1743924665125,-3139.91290375,0.001,120]
[357235159,1743924665135,-151.0,0.00100335,120]
[357235160,1743924665145,-151.0,0.00100822,120]
[357235161,1743924665154,-151.0,0.00101863,120]
[357235162,1743924665163,-341.54,0.00102206,120]
[357235163,1743924665173,-151.0,0.00103335,120]
[357235164,1743924665183,-151.0,0.00106335,120]
[357235165,1743924665193,-341.54,0.00108003,120]
[357235166,1743924665203,-151.0,0.00108795,120]
[357235167,1743924665212,-390000.0,0.0011,120]
[357235168,1743924665222,-341.54,0.001138,120]
[357235169,1743924665231,-151.0,0.00116767,120]
[357235170,1743924665240,-341.54,0.00119596,120]
[357235171,1743924665249,-151.0,0.00120822,120]
[357235172,1743924665259,-151.0,0.0012474,120]
[357235173,1743924665269,-341.54,0.00125393,120]
[357235174,1743924665278,-1340.46435457,0.001263,84]
[357235175,1743924665288,-341.54,0.0013119,120]
[357235176,1743924665297,-151.0,0.00132712,120]
[357235177,1743924665307,-155.234977,0.001348,60]
[357235178,1743924665316,-341.54,0.00136986,120]
[357235179,1743924665326,-150.0,0.00139726,120]
[357235180,1743924665335,-500.0,0.00139726,120]
[357235181,1743924665345,-500.0,0.00139726,9]
[357235182,1743924665356,-500.0,0.00139726,120]
[357235183,1743924665366,-152.18476577,0.00139726,120]
[357235184,1743924665376,-150.0,0.00139726,120]
[357235185,1743924665385,-151.0,0.00139726,90]
[357235186,1743924665396,-151.0,0.00139726,120]
[357235187,1743924665405,-151.0,0.00139726,120]
[357235188,1743924665414,-151.0,0.00139726,120]
[357235189,1743924665424,-263.660639,0.00139726,120]
[357235190,1743924665433,-151.0,0.00139726,120]
[357235191,1743924665443,-192.0,0.00139726,120]
[357235192,1743924665453,-151.0,0.00139726,120]
[357235193,1743924665467,-151.0,0.00139726,120]
[357235194,1743924665476,-151.0,0.00139726,120]
[357235195,1743924665485,-151.0,0.00139726,120]
[357235196,1743924665495,-151.0,0.00139726,120]
[357235197,1743924665504,-153.46697,0.00139726,120]
[357235198,1743924665513,-206.546914,0.00139726,120]
[357235199,1743924665522,-151.0,0.00139726,120]
[357235200,1743924665531,-151.0,0.00139726,120]
[357235201,1743924665541,-151.0,0.00139726,120]
[357235202,1743924665551,-246.144028,0.00139726,120]
[357235203,1743924665562,-158.681043,0.00139726,120]
[357235204,1743924665571,-151.0,0.00139726,120]
[357235205,1743924665581,-151.0,0.00139726,120]
[357235206,1743924665590,-151.0,0.00139726,120]
[357235207,1743924665599,-151.0,0.00139726,120]
[357235208,1743924665609,-151.0,0.00139726,120]
[357235209,1743924665618,-151.0,0.00139726,120]
[357235210,1743924665628,-151.0,0.00139726,120]
[357235211,1743924665638,-151.0,0.00139726,120]
[357235212,1743924665647,-151.0,0.00139726,120]
[357235213,1743924665657,-151.0,0.00139726,120]
[357235214,1743924665666,-155.122425,0.00139726,120]
[357235215,1743924665676,-151.0,0.00139726,120]
[357235216,1743924665686,-151.0,0.00139726,120]
[357235217,1743924665696,-276.794376,0.00139726,120]
[357235218,1743924665705,-151.0,0.00139726,120]
[357235219,1743924665715,-151.0,0.00139726,120]
[357235220,1743924665725,-223.459594,0.00139726,120]
[357235221,1743924665734,-151.0,0.00139726,120]
[357235222,1743924665743,-151.0,0.00139726,120]
[357235223,1743924665753,-151.0,0.00139726,120]
[357235224,1743924665762,-151.0,0.00139726,120]
[357235225,1743924665772,-151.0,0.00139726,120]
[357235226,1743924665781,-151.0,0.00139726,120]
[357235227,1743924665790,-189.163541,0.00139726,120]
[357235228,1743924665802,-151.0,0.00139726,120]
[357235229,1743924665811,-151.0,0.00139726,120]
[357235230,1743924665820,-151.0,0.00139726,120]
[357235231,1743924665830,-151.0,0.00139726,120]
[357235232,1743924665840,-194.256721,0.00139726,120]
[357235233,1743924665849,-151.0,0.00139726,120]
[357235234,1743924665859,-151.0,0.00139726,120]
[357235235,1743924665870,-219.412904,0.00139726,120]
[357235236,1743924665880,-152.509744,0.00139726,120]
[357235237,1743924665890,-151.0,0.00139726,120]
[357235238,1743924665900,-151.0,0.00139726,120]
[357235239,1743924665909,-151.0,0.00139726,120]
[357235240,1743924665918,-151.0,0.00139726,120]
[357235241,1743924665928,-152.971699,0.00139726,120]
[357235242,1743924665938,-151.0,0.00139726,120]
[357235243,1743924665948,-151.0,0.00139726,120]
[357235244,1743924665957,-151.0,0.00139726,120]
[357235245,1743924665967,-151.0,0.00139726,120]
[357235246,1743924665976,-151.0,0.00139726,120]
[357235247,1743924665986,-151.0,0.00139726,120]
[357235248,1743924665996,-164.356624,0.00139726,120]
[357235249,1743924666006,-151.0,0.00139726,120]
[357235250,1743924666015,-151.0,0.00139726,120]
[357235251,1743924666024,-151.0,0.00139726,120]
[357235252,1743924666034,-161.753088,0.00139726,120]
[357235253,1743924666044,-385.592135,0.00139726,120]
[357235254,1743924666053,-385.592135,0.00139726,120]
[357235255,1743924666063,-385.592135,0.00139726,120]
[357235256,1743924666072,-385.592135,0.00139726,120]
[357235257,1743924666082,-385.592135,0.00139726,120]
[357235258,1743924666092,-385.592135,0.00139726,120]
[357235259,1743924666100,-385.592135,0.00139726,120]
[357235260,1743924666110,-385.592135,0.00139726,120]
[357235261,1743924666120,-385.592135,0.00139726,120]
[357235262,1743924666130,-385.592135,0.00139726,120]
[357235263,1743924666143,-385.592135,0.00139726,120]
[357235264,1743924666153,-385.592135,0.00139726,120]
[357235265,1743924666162,-385.592135,0.00139726,120]
[357235266,1743924666172,-385.592135,0.00139726,120]
[357235267,1743924666181,-167.352674,0.00139726,120]
[357235268,1743924666190,-385.592135,0.00139726,120]
[357235269,1743924666200,-385.592135,0.00139726,120]
[357235270,1743924666209,-385.592135,0.00139726,120]
[357235271,1743924666219,-385.592135,0.00139726,120]
[357235272,1743924666228,-385.592135,0.00139726,120]
[357235273,1743924666238,-385.592139,0.00139726,120]
[357235274,1743924666247,-151.0,0.00139726,120]
[357235275,1743924666257,-151.0,0.00139726,120]
[357235276,1743924666267,-151.0,0.00139726,120]
[357235277,1743924666276,-151.0,0.00139726,120]
[357235278,1743924666286,-151.0,0.00139726,120]
[357235279,1743924666295,-151.0,0.00139726,120]
[357235280,1743924666305,-231.136778,0.00139726,120]
[357235281,1743924666315,-151.0,0.00139726,120]
[357235282,1743924666324,-151.0,0.00139726,120]
[357235283,1743924666333,-179.389828,0.00139726,120]
[357235284,1743924666343,-213.333348,0.00139726,120]
[357235285,1743924666353,-213.333348,0.00139726,120]
[357235286,1743924666363,-213.333348,0.00139726,120]
[357235287,1743924666374,-213.333348,0.00139726,120]
[357235288,1743924666386,-213.333348,0.00139726,120]
[357235289,1743924666395,-213.333348,0.00139726,120]
[357235290,1743924666405,-213.333348,0.00139726,120]
[357235291,1743924666415,-213.333348,0.00139726,120]
[357235292,1743924666424,-213.333348,0.00139726,120]
[357235293,1743924666433,-213.333348,0.00139726,120]
[357235294,1743924666443,-213.333348,0.00139726,120]
[357235295,1743924666453,-213.333348,0.00139726,120]
[357235296,1743924666466,-213.333348,0.00139726,120]
[357235297,1743924666476,-213.333348,0.00139726,120]
[357235298,1743924666485,-213.333348,0.00139726,120]
[357235299,1743924666494,-213.333348,0.00139726,120]
[357235300,1743924666505,-213.333348,0.00139726,120]
[357235301,1743924666515,-213.333348,0.00139726,120]
[357235302,1743924666525,-213.333348,0.00139726,120]
[357235303,1743924666535,-213.333357,0.00139726,120]
[357235304,1743924666545,-151.0,0.00139726,120]
[357235305,1743924666555,-151.0,0.00139726,120]
[357235306,1743924666565,-151.0,0.00139726,120]
[357235307,1743924666575,-151.0,0.00139726,120]
[357235308,1743924666585,-151.0,0.00139726,120]
[357235309,1743924666595,-151.0,0.00139726,120]
[357235310,1743924666604,-151.0,0.00139726,120]
[357235311,1743924666614,-151.0,0.00139726,120]
[357235312,1743924666624,-151.0,0.00139726,120]
[357235313,1743924666633,-151.0,0.00139726,120]
[357235314,1743924666643,-151.0,0.00139726,120]
[357235315,1743924666653,-151.0,0.00139726,120]
[357235316,1743924666663,-151.0,0.00139726,120]
[357235317,1743924666755,-151.0,0.00139726,120]
[357235318,1743924666764,-277.302526,0.00139726,120]
[357235319,1743924666774,-151.0,0.00139726,120]
[357235320,1743924666784,-277.302526,0.00139726,120]
[357235321,1743924666794,-158.69084,0.00139726,120]
[357235322,1743924666804,-277.302526,0.00139726,120]
[357235323,1743924666814,-277.302526,0.00139726,120]
[357235324,1743924666824,-277.302526,0.00139726,120]
[357235325,1743924666834,-277.302526,0.00139726,120]
[357235326,1743924666845,-277.302526,0.00139726,120]
[357235327,1743924666855,-277.302526,0.00139726,120]
[357235328,1743924666865,-277.302526,0.00139726,120]
[357235329,1743924666874,-277.302526,0.00139726,120]
[357235330,1743924666884,-277.302526,0.00139726,120]
[357235331,1743924666895,-277.302526,0.00139726,120]
[357235332,1743924666904,-277.302526,0.00139726,120]
[357235333,1743924666913,-277.302526,0.00139726,120]
[357235334,1743924666922,-277.302526,0.00139726,120]
[357235335,1743924666932,-277.302526,0.00139726,120]
[357235336,1743924666941,-277.302526,0.00139726,120]
[357235337,1743924666954,-277.302526,0.00139726,120]
[357235338,1743924666963,-277.302526,0.00139726,120]
[357235339,1743924666972,-151.0,0.00139726,120]
[357235340,1743924666982,-234.496658,0.00139726,120]
[357235341,1743924666991,-151.0,0.00139726,120]
[357235342,1743924667000,-151.0,0.00139726,120]
[357235343,1743924667009,-231.170566,0.00139726,120]
[357235344,1743924667019,-151.0,0.00139726,120]
[357235345,1743924667028,-151.0,0.00139726,120]
[357235346,1743924667038,-151.0,0.00139726,120]
[357235347,1743924667048,-151.0,0.00139726,120]
[357235348,1743924667057,-151.0,0.00139726,120]
[357235349,1743924667067,-151.0,0.00139726,120]
[357235350,1743924667077,-165.812559,0.00139726,120]
[357235351,1743924667086,-151.0,0.00139726,120]
[357235352,1743924667096,-151.0,0.00139726,120]
[357235353,1743924667106,-151.0,0.00139726,120]
[357235354,1743924667115,-158.52,0.00139726,120]
[357235355,1743924667125,-151.0,0.00139726,120]
[357235356,1743924667134,-151.0,0.00139726,120]
[357235357,1743924667144,-151.0,0.00139726,120]
[357235358,1743924667153,-151.0,0.00139726,120]
[357235359,1743924667163,-151.0,0.00139726,120]
[357235360,1743924667172,-151.0,0.00139726,120]
[357235361,1743924667182,-151.0,0.00139726,120]
[357235362,1743924667191,-151.0,0.00139726,120]
[357235363,1743924667200,-158.374622,0.00139726,120]
[357235364,1743924667210,-151.0,0.00139726,120]
[357235365,1743924667219,-158.374622,0.00139726,120]
[357235366,1743924667229,-151.0,0.00139726,120]
[357235367,1743924667238,-151.0,0.00139726,120]
[357235368,1743924667247,-158.374622,0.00139726,120]
[357235369,1743924667256,-151.0,0.00139726,120]
[357235370,1743924667266,-158.374622,0.00139726,120]
[357235371,1743924667276,-214.259535,0.00139726,120]
[357235372,1743924667286,-158.374622,0.00139726,120]
[357235373,1743924667295,-158.374622,0.00139726,120]
[357235374,1743924667305,-158.374622,0.00139726,120]
[357235375,1743924667314,-158.374622,0.00139726,120]
[357235376,1743924667324,-158.374622,0.00139726,120]
[357235377,1743924667335,-158.374622,0.00139726,120]
[357235378,1743924667344,-158.374622,0.00139726,120]
[357235379,1743924667354,-158.374622,0.00139726,120]
[357235380,1743924667364,-158.374622,0.00139726,120]
[357235381,1743924667374,-158.374622,0.00139726,120]
[357235382,1743924667384,-158.374622,0.00139726,120]
[357235383,1743924667394,-158.374622,0.00139726,120]
[357235384,1743924667403,-158.374622,0.00139726,120]
[357235385,1743924667413,-151.0,0.00139726,120]
[357235386,1743924667423,-158.374622,0.00139726,120]
[357235387,1743924667432,-151.0,0.00139726,120]
[357235388,1743924667442,-158.374622,0.00139726,120]
[357235389,1743924667452,-151.0,0.00139726,120]
[357235390,1743924667466,-158.374627,0.00139726,120]
[357235391,1743924667476,-151.0,0.00139726,120]
[357235392,1743924667486,-151.0,0.00139726,120]
[357235393,1743924667495,-151.0,0.00139726,120]
[357235394,1743924667506,-151.0,0.00139726,120]
[357235395,1743924667515,-151.0,0.00139726,120]
[357235396,1743924667524,-296.64599,0.00139726,120]
[357235397,1743924667534,-151.0,0.00139726,120]
[357235398,1743924667544,-151.0,0.00139726,120]
[357235399,1743924667554,-151.0,0.00139726,120]
[357235400,1743924667564,-151.0,0.00139726,120]
[357235401,1743924667574,-151.0,0.00139726,120]
[357235402,1743924667585,-151.0,0.00139726,120]
[357235403,1743924667595,-151.0,0.00139726,120]
[357235404,1743924667605,-151.0,0.00139726,120]
[357235405,1743924667615,-151.0,0.00139726,120]
[357235406,1743924667625,-151.0,0.00139726,120]
[357235407,1743924667637,-151.0,0.00139726,120]
[357235408,1743924667647,-151.0,0.00139726,120]
[357235409,1743924667657,-151.0,0.00139726,120]
[357235410,1743924667668,-151.0,0.00139726,120]
[357235411,1743924667679,-151.0,0.00139726,120]
[357235412,1743924667689,-151.0,0.00139726,120]
[357235413,1743924667699,-267.087652,0.00139726,120]
[357235414,1743924667709,-151.0,0.00139726,120]
[357235415,1743924667719,-217.849509,0.00139726,120]
[357235416,1743924667728,-151.0,0.00139726,120]
[357235417,1743924667738,-151.0,0.00139726,120]
[357235418,1743924667748,-151.0,0.00139726,120]
[357235419,1743924667757,-151.0,0.00139726,120]
[357235420,1743924667767,-151.0,0.00139726,120]
[357235421,1743924667776,-151.0,0.00139726,120]
[357235422,1743924667786,-151.0,0.00139726,120]
[357235423,1743924667795,-151.0,0.00139726,120]
[357235424,1743924667804,-151.0,0.00139726,120]
[357235425,1743924667814,-151.0,0.00139726,120]
[357235426,1743924667823,-151.0,0.00139726,120]
[357235427,1743924667835,-151.0,0.00139726,120]
[357235428,1743924667845,-151.0,0.00139726,120]
[357235429,1743924667855,-151.0,0.00139726,120]
[357235430,1743924667864,-151.0,0.00139726,120]
[357235431,1743924667874,-151.0,0.00139726,120]
[357235432,1743924667883,-173.449689,0.00139726,120]
[357235433,1743924667893,-273.025915,0.00139726,120]
[357235434,1743924667903,-273.025915,0.00139726,120]
[357235435,1743924667912,-273.025915,0.00139726,120]
[357235436,1743924667923,-273.025915,0.00139726,120]
[357235437,1743924667932,-273.025915,0.00139726,120]
[357235438,1743924667941,-273.025915,0.00139726,120]
[357235439,1743924667951,-273.025915,0.00139726,120]
[357235440,1743924667961,-273.025915,0.00139726,120]
[357235441,1743924667972,-273.025915,0.00139726,120]
[357235442,1743924667981,-273.025915,0.00139726,120]
[357235443,1743924667991,-273.025915,0.00139726,120]
[357235444,1743924668000,-273.025915,0.00139726,120]
[357235445,1743924668010,-273.025915,0.00139726,120]
[357235446,1743924668019,-273.025915,0.00139726,120]
[357235447,1743924668029,-273.025915,0.00139726,120]
[357235448,1743924668038,-273.025915,0.00139726,120]
[357235449,1743924668048,-273.025915,0.00139726,120]
[357235450,1743924668057,-273.025915,0.00139726,120]
[357235451,1743924668066,-273.025915,0.00139726,120]
[357235452,1743924668078,-273.025917,0.00139726,120]
[357235453,1743924668087,-151.0,0.00139726,120]
[357235454,1743924668098,-151.0,0.00139726,120]
[357235455,1743924668108,-221.82243,0.00139726,120]
[357235456,1743924668117,-151.0,0.00139726,120]
[357235457,1743924668126,-151.0,0.00139726,120]
[357235458,1743924668136,-151.0,0.00139726,120]
[357235459,1743924668146,-151.0,0.00139726,120]
[357235460,1743924668155,-151.0,0.00139726,120]
[357235461,1743924668165,-151.0,0.00139726,120]
[357235462,1743924668175,-459.433264,0.00139726,120]
[357235463,1743924668185,-459.433264,0.00139726,120]
[357235464,1743924668195,-459.433264,0.00139726,120]
[357235465,1743924668205,-459.433264,0.00139726,120]
[357235466,1743924668214,-459.433264,0.00139726,120]
[357235467,1743924668224,-459.433264,0.00139726,120]
[357235468,1743924668234,-459.433264,0.00139726,120]
[357235469,1743924668243,-459.433264,0.00139726,120]
[357235470,1743924668253,-459.433264,0.00139726,120]
[357235471,1743924668262,-459.433264,0.00139726,120]
[357235472,1743924668272,-459.433264,0.00139726,120]
[357235473,1743924668282,-459.433264,0.00139726,120]
[357235474,1743924668292,-459.433264,0.00139726,120]
[357235475,1743924668302,-459.433264,0.00139726,120]
[357235476,1743924668311,-459.433264,0.00139726,120]
[357235477,1743924668320,-459.433264,0.00139726,120]
[357235478,1743924668329,-152.636233,0.00139726,120]
[357235479,1743924668339,-459.433264,0.00139726,120]
[357235480,1743924668347,-459.433264,0.00139726,120]
[357235481,1743924668357,-459.433264,0.00139726,120]
[357235482,1743924668366,-459.433267,0.00139726,120]
[357235483,1743924668375,-151.0,0.00139726,120]
[357235484,1743924668384,-151.0,0.00139726,120]
[357235485,1743924668394,-151.0,0.00139726,120]
[357235486,1743924668482,-151.0,0.00139726,120]
[357235487,1743924668493,-151.0,0.00139726,120]
[357235488,1743924668503,-151.0,0.00139726,120]
[357235489,1743924668513,-151.0,0.00139726,120]
[357235490,1743924668523,-151.0,0.00139726,120]
[357235491,1743924668534,-151.0,0.00139726,120]
[357235492,1743924668543,-151.0,0.00139726,120]
[357235493,1743924668553,-151.0,0.00139726,120]
[357235494,1743924668563,-154.971838,0.00139726,120]
[357235495,1743924668572,-151.0,0.00139726,120]
[357235496,1743924668583,-151.0,0.00139726,120]
[357235497,1743924668594,-151.978421,0.00139726,120]
[357235498,1743924668604,-3958.819868,0.00139726,120]
[357235499,1743924668614,-3958.819868,0.00139726,120]
[357235500,1743924668625,-3958.819868,0.00139726,120]
[357235501,1743924668635,-3958.819868,0.00139726,120]
[357235502,1743924668646,-3958.819868,0.00139726,120]
[357235503,1743924668656,-151.0,0.00139726,120]
[357235504,1743924668665,-3958.819868,0.00139726,120]
[357235505,1743924668675,-151.0,0.00139726,120]
[357235506,1743924668685,-3958.819868,0.00139726,120]
[357235507,1743924668695,-157.587931,0.00139726,120]
[357235508,1743924668705,-3958.819868,0.00139726,120]
[357235509,1743924668715,-3958.819868,0.00139726,120]
[357235510,1743924668725,-3958.819868,0.00139726,120]
[357235511,1743924668734,-151.0,0.00139726,120]
[357235512,1743924668744,-3958.819868,0.00139726,120]
[357235513,1743924668754,-151.0,0.00139726,120]
[357235514,1743924668763,-3958.819868,0.00139726,120]
[357235515,1743924668773,-151.0,0.00139726,120]
[357235516,1743924668782,-3958.819868,0.00139726,120]
[357235517,1743924668792,-151.0,0.00139726,120]
[357235518,1743924668802,-3958.819868,0.00139726,120]
[357235519,1743924668812,-286.667557,0.00139726,120]
[357235520,1743924668821,-3958.819868,0.00139726,120]
[357235521,1743924668831,-3958.819868,0.00139726,120]
[357235522,1743924668840,-3958.819868,0.00139726,120]
[357235523,1743924668850,-3958.819868,0.00139726,120]
[357235524,1743924668859,-3958.819868,0.00139726,120]
[357235525,1743924668868,-3958.819873,0.00139726,120]
[357235526,1743924668878,-151.0,0.00139726,120]
[357235527,1743924668888,-151.0,0.00139726,120]
[357235528,1743924668897,-151.0,0.00139726,120]
[357235529,1743924668906,-151.0,0.00139726,120]
[357235530,1743924668915,-151.0,0.00139726,120]
[357235531,1743924668925,-151.0,0.00139726,120]
[357235532,1743924668934,-151.0,0.00139726,120]
[357235533,1743924668943,-151.0,0.00139726,120]
[357235534,1743924668953,-151.0,0.00139726,120]
[357235535,1743924668963,-151.0,0.00139726,120]
[357235536,1743924668973,-244.921344,0.00139726,120]
[357235537,1743924668981,-213.668936,0.00139726,120]
[357235538,1743924668991,-213.668936,0.00139726,120]
[357235539,1743924669001,-213.668936,0.00139726,120]
[357235540,1743924669010,-213.668936,0.00139726,120]
[357235541,1743924669020,-151.0,0.00139726,120]
[357235542,1743924669029,-213.668936,0.00139726,120]
[357235543,1743924669038,-151.0,0.00139726,120]
[357235544,1743924669047,-213.668936,0.00139726,120]
[357235545,1743924669057,-151.0,0.00139726,120]
[357235546,1743924669066,-213.668936,0.00139726,120]